bitfinex/quotes_BTCUSD_20251110
["timestamp","ask_amount","ask_price","bid_price","bid_amount"]
[1762751416261,0.002,106390.0,106380.0,0.85121502]
[1762751416441,0.003,106390.0,106380.0,0.85121502]
[1762751417106,0.001,106390.0,106380.0,0.85121502]
[1762751417502,0.002,106390.0,106380.0,0.85121502]
[1762751418070,0.002,106390.0,106380.0,0.78251735]
[1762751419256,0.002,106390.0,106380.0,1.03454586]
[1762751423340,0.002,106390.0,106380.0,0.27846033]
[1762751423581,0.002,106390.0,106380.0,1.03454586]
[1762751424241,0.002,106390.0,106380.0,0.78251735]
[1762751424465,0.002,106390.0,106380.0,0.27846033]
[1762751424660,0.002,106390.0,106380.0,0.78251735]
[1762751430152,0.002,106390.0,106380.0,0.27846033]
[1762751430309,0.002,106390.0,106380.0,0.78251735]
[1762751434055,0.002,106390.0,106380.0,0.88061908]
[1762751435069,0.002,106390.0,106380.0,0.61447612]
[1762751443384,0.002,106390.0,106380.0,0.25436033]
[1762751443585,0.002,106390.0,106380.0,0.26702034]
[1762751443789,0.002,106390.0,106380.0,0.27702033]
[1762751445109,0.002,106390.0,106380.0,0.61303612]
[1762751446988,0.52600338,106390.0,106380.0,0.00999999]
[1762751447420,0.18998759,106390.0,106380.0,0.00999999]
[1762751447828,0.18998759,106390.0,106380.0,0.19800525]
[1762751448416,0.18998759,106390.0,106380.0,0.20986525]
[1762751451236,0.18998759,106390.0,106380.0,0.24814525]
[1762751451478,0.18998759,106390.0,106380.0,0.22492525]
[1762751452296,0.002,106390.0,106380.0,0.22492525]
[1762751452522,0.002,106390.0,106380.0,0.33459083]
[1762751453410,0.002,106390.0,106380.0,0.58502104]
[1762751456867,0.002,106390.0,106380.0,0.24900525]
[1762751457074,0.002,106390.0,106380.0,0.58502104]
[1762751460445,0.002,106390.0,106380.0,0.24900525]
[1762751460645,0.002,106390.0,106380.0,0.58502104]
[1762751462266,0.002,106390.0,106380.0,0.24900525]
[1762751462696,0.002,106390.0,106380.0,0.58502104]
[1762751463463,0.002,106390.0,106380.0,0.92103683]
[1762751463902,0.002,106390.0,106380.0,0.94972407]
[1762751464720,0.002,106390.0,106380.0,0.61370828]
[1762751465169,0.002,106390.0,106380.0,0.94972407]
[1762751466463,0.002,106390.0,106380.0,0.27769249]
[1762751466664,0.002,106390.0,106380.0,0.58549077]
[1762751466824,0.002,106390.0,106380.0,0.65128334]
[1762751468501,0.18825489,106400.0,106390.0,0.18798759]
[1762751469158,0.18825489,106400.0,106380.0,0.63622334]
[1762751469399,0.18825489,106400.0,106390.0,0.18798759]
[1762751469545,0.18825489,106400.0,106380.0,0.63722334]
[1762751469742,0.18925489,106400.0,106390.0,0.00999999]
[1762751469998,0.52527068,106400.0,106390.0,0.00999999]
[1762751470206,0.54289264,106400.0,106390.0,0.00999999]
[1762751470361,0.18800526,106380.0,106370.0,0.35780086]
[1762751470567,0.18800526,106380.0,106370.0,0.35733122]
[1762751470757,0.24101338,106400.0,106380.0,0.19800525]
[1762751470958,0.24001338,106400.0,106380.0,0.58565104]
[1762751471161,0.24101338,106400.0,106380.0,0.58565104]
[1762751471361,0.57602917,106400.0,106380.0,0.24963525]
[1762751471569,0.18925074,106400.0,106390.0,0.22553758]
[1762751471776,0.19025074,106400.0,106390.0,0.03754999]
[1762751472175,0.18925074,106400.0,106390.0,0.22553758]
[1762751472826,0.19025074,106400.0,106390.0,0.22553758]
[1762751473126,0.18925074,106400.0,106390.0,0.22553758]
[1762751473260,0.00128082,106400.0,106390.0,0.65142594]
[1762751473467,0.00228082,106400.0,106390.0,0.65142594]
[1762751473901,0.00228082,106400.0,106390.0,0.31541015]
[1762751474301,0.00228082,106400.0,106390.0,0.65142594]
[1762751474956,0.00228082,106400.0,106390.0,0.31541015]
[1762751475181,0.00228082,106400.0,106390.0,0.65142594]
[1762751479850,0.00228082,106400.0,106390.0,0.65189168]
[1762751480073,0.00228082,106400.0,106390.0,0.65142594]
[1762751482229,0.00228082,106400.0,106390.0,0.65189167]
[1762751482469,0.00228082,106400.0,106390.0,0.6796392]
[1762751482613,0.00128082,106400.0,106390.0,0.6796392]
[1762751483015,0.00128082,106400.0,106390.0,0.68110714]
[1762751483403,0.00028082,106400.0,106390.0,0.68110714]
[1762751483837,0.00028082,106400.0,106390.0,0.68210714]
[1762751486233,0.00028082,106400.0,106390.0,0.34609135]
[1762751486437,0.00028082,106400.0,106390.0,0.68210714]
[1762751488194,0.00028082,106400.0,106390.0,0.34609135]
[1762751488401,0.00028082,106400.0,106390.0,0.31787809]
[1762751488602,0.00028082,106400.0,106390.0,0.65342594]
[1762751488848,0.18825074,106400.0,106390.0,0.31741015]
[1762751489027,0.00028082,106400.0,106390.0,0.30741016]
[1762751489232,0.00028082,106400.0,106390.0,0.31741015]
[1762751491431,0.18825074,106400.0,106390.0,0.03954999]
[1762751491771,0.59962464,106400.0,106390.0,0.01199999]
[1762751492097,0.59962464,106400.0,106390.0,0.19998758]
[1762751492296,0.18825074,106400.0,106390.0,0.01099999]
[1762751492501,0.52426653,106400.0,106390.0,0.01099999]
[1762751492661,0.52426653,106400.0,106390.0,0.00999999]
[1762751493058,0.52426653,106400.0,106380.0,0.22461526]
[1762751493263,0.59962464,106400.0,106390.0,0.00999999]
[1762751493607,0.59962464,106400.0,106390.0,0.19798758]
[1762751493788,0.18925074,106400.0,106390.0,0.19798758]
[1762751494381,0.188984,106400.0,106390.0,0.19798758]
[1762751494782,0.188984,106400.0,106390.0,0.20946758]
[1762751497007,0.25306818,106400.0,106390.0,0.20946758]
[1762751497314,0.00101408,106400.0,106390.0,0.20946758]
[1762751497518,0.4410381,106400.0,106390.0,0.20946758]
[1762751497929,0.25306818,106400.0,106390.0,0.20946758]
[1762751499886,0.25306818,106400.0,106390.0,0.22477758]
[1762751501117,0.00101408,106400.0,106390.0,0.24932758]
[1762751501252,0.00101408,106400.0,106390.0,0.50138168]
[1762751502427,0.00101408,106400.0,106390.0,0.84173925]
[1762751502847,0.00101408,106400.0,106390.0,0.27183848]
[1762751503007,0.00101408,106400.0,106390.0,0.50138168]
[1762751504674,0.4410381,106400.0,106390.0,0.22477758]
[1762751504874,0.4410381,106400.0,106390.0,0.00999999]
[1762751505076,0.4410381,106400.0,106390.0,0.19798758]
[1762751505748,0.4410381,106400.0,106390.0,0.00999999]
[1762751505956,0.4410381,106400.0,106390.0,0.19798758]
[1762751506681,0.188984,106400.0,106390.0,0.19798758]
[1762751508139,0.7344522,106400.0,106380.0,0.21006101]
[1762751508343,0.04237408,106400.0,106390.0,0.21029758]
[1762751508530,0.00101408,106400.0,106390.0,0.75408578]
[1762751508736,0.188984,106400.0,106390.0,0.50203168]
[1762751508971,0.187984,106400.0,106390.0,0.03755999]
[1762751509169,1.408e-05,106400.0,106390.0,0.22554758]
[1762751509381,0.188984,106400.0,106390.0,0.22554758]
[1762751509810,0.187984,106400.0,106390.0,0.22554758]
[1762751510319,0.188984,106400.0,106390.0,0.21029758]
[1762751510530,0.00101408,106400.0,106390.0,0.50203168]
[1762751510722,0.00101408,106400.0,106390.0,0.47760168]
[1762751510879,0.188984,106400.0,106390.0,0.47760168]
[1762751511460,0.00101408,106400.0,106390.0,0.47760168]
[1762751511661,0.00101408,106400.0,106390.0,0.50203168]
[1762751512829,0.188984,106400.0,106390.0,0.47760168]
[1762751513026,0.188984,106400.0,106390.0,0.00999999]
[1762751513230,0.4410381,106400.0,106390.0,0.00999999]
[1762751513405,0.4824381,106400.0,106390.0,0.00999999]
[1762751515940,0.7344922,106400.0,106390.0,0.00999999]
[1762751516388,0.230384,106400.0,106390.0,0.00999999]
[1762751516611,0.4824381,106400.0,106390.0,0.19798758]
[1762751517003,0.4824381,106400.0,106390.0,0.00999999]
[1762751518316,0.230384,106400.0,106390.0,0.19798758]
[1762751518514,0.4824381,106400.0,106390.0,0.19798758]
[1762751520146,0.4824381,106400.0,106390.0,0.00999999]
[1762751520345,0.18798759,106390.0,106380.0,0.19799898]
[1762751520552,0.7344922,106400.0,106380.0,0.19799898]
[1762751520752,0.7344922,106400.0,106380.0,0.45005308]
[1762751521123,0.18798759,106390.0,106380.0,0.45005308]
[1762751521558,0.18798759,106390.0,106380.0,0.45105308]
[1762751521883,0.18798759,106390.0,106380.0,0.19899898]
[1762751522084,0.18798759,106390.0,106380.0,0.45105308]
[1762751522296,0.18798759,106390.0,106380.0,0.19899898]
[1762751522426,0.7334922,106400.0,106380.0,0.21046898]
[1762751522622,0.229384,106400.0,106380.0,0.21046898]
[1762751522832,0.4814381,106400.0,106390.0,0.18798759]
[1762751523029,0.4814381,106400.0,106380.0,0.46352308]
[1762751523259,0.4814381,106400.0,106380.0,0.46252308]
[1762751523551,0.18798759,106390.0,106380.0,0.21046898]
[1762751524362,0.18798759,106390.0,106380.0,0.02146999]
[1762751524571,0.18798759,106390.0,106380.0,0.20947525]
[1762751524737,0.18798759,106390.0,106380.0,0.46152935]
[1762751524933,0.18798759,106390.0,106380.0,0.20947525]
[1762751525173,0.18798759,106390.0,106380.0,0.19900525]
[1762751525376,0.69209579,106390.0,106380.0,0.01199999]
[1762751525789,0.69209579,106390.0,106380.0,0.20000525]
[1762751525988,0.44004169,106390.0,106380.0,0.01199999]
[1762751526228,0.44004169,106390.0,106380.0,0.19900525]
[1762751526628,0.44104169,106390.0,106380.0,0.19900525]
[1762751527415,0.44104169,106390.0,106380.0,0.19800525]
[1762751527790,0.44104169,106390.0,106380.0,0.00999999]
[1762751527995,0.18800526,106380.0,106370.0,0.20742236]
[1762751528260,0.18800526,106380.0,106370.0,0.19802292]
[1762751529178,0.18800526,106380.0,106370.0,0.19902292]
[1762751529328,0.18800526,106380.0,106370.0,0.20002292]
[1762751532182,0.48145936,106380.0,106370.0,0.002]
[1762751532366,0.22940526,106380.0,106370.0,0.19002293]
[1762751533167,0.22940526,106380.0,106370.0,0.20149293]
[1762751533714,0.0414,106380.0,106370.0,0.20149293]
[1762751533947,0.0414,106380.0,106370.0,0.45354703]
[1762751534147,0.22940526,106380.0,106370.0,0.75611112]
[1762751534262,0.0414,106380.0,106370.0,0.75611112]
[1762751534873,0.55238759,106390.0,106380.0,0.18800526]
[1762751536252,0.55238759,106390.0,106380.0,0.44005936]
[1762751536524,0.55238759,106390.0,106380.0,0.18800526]
[1762751537093,0.55338759,106390.0,106380.0,0.18800526]
[1762751537704,0.51198759,106390.0,106380.0,0.46718936]
[1762751537998,0.55338759,106390.0,106380.0,0.46718936]
[1762751538361,0.55338759,106390.0,106380.0,0.21513526]
[1762751538561,0.55338759,106390.0,106380.0,0.46718936]
[1762751540259,0.55338759,106390.0,106380.0,0.21513526]
[1762751540508,0.55338759,106390.0,106380.0,0.45152936]
[1762751542783,0.3654,106390.0,106380.0,0.45152936]
[1762751543140,0.3654,106390.0,106380.0,0.46757936]
[1762751543361,0.55338759,106390.0,106380.0,0.46757936]
[1762751544846,0.55338759,106390.0,106380.0,0.45152936]
[1762751545054,0.55338759,106390.0,106370.0,0.73845112]
[1762751545272,0.55338759,106390.0,106380.0,0.18800526]
[1762751546316,0.55338759,106390.0,106370.0,0.73845112]
[1762751546607,0.55238759,106390.0,106370.0,0.73892117]
[1762751546998,0.55338759,106390.0,106370.0,0.73892117]
[1762751547480,0.55338759,106390.0,106380.0,0.18800526]
[1762751547879,0.55338759,106390.0,106370.0,0.73845112]
[1762751548082,0.55338759,106390.0,106370.0,0.73892117]
[1762751548565,0.44005936,106380.0,106370.0,0.00999999]
[1762751548773,0.69211346,106380.0,106370.0,0.00999999]
[1762751549325,0.18802293,106370.0,106360.0,0.45214044]
[1762751549518,0.18802293,106370.0,106360.0,0.46167241]
[1762751550784,0.18802293,106370.0,106360.0,0.46367241]
[1762751551221,0.18802293,106370.0,106360.0,0.46667241]
[1762751551704,0.55240526,106380.0,106370.0,0.18802293]
[1762751552645,0.18802293,106370.0,106360.0,0.27410252]
[1762751552844,0.44007703,106370.0,106360.0,0.1980406]
[1762751553106,0.44007703,106370.0,106360.0,0.1990406]
[1762751553313,0.18802293,106370.0,106360.0,0.4510947]
[1762751553519,0.80445936,106380.0,106360.0,0.4626747]
[1762751553828,0.80445936,106380.0,106360.0,0.7147288]
[1762751554037,0.80445936,106380.0,106360.0,0.7157288]
[1762751554206,0.18802293,106370.0,106360.0,0.2116206]
[1762751554366,0.18802293,106370.0,106360.0,0.7147288]
[1762751554562,0.80445936,106380.0,106360.0,0.7307788]
[1762751554821,0.80545936,106380.0,106360.0,0.7307788]
[1762751554994,0.80545936,106380.0,106360.0,0.7297788]
[1762751555778,0.80545936,106380.0,106360.0,0.7547788]
[1762751555987,0.18802293,106370.0,106360.0,0.4777247]
[1762751556919,0.18802293,106370.0,106360.0,0.2106206]
[1762751557259,0.18802293,106370.0,106360.0,0.01099999]
[1762751557849,0.18802293,106370.0,106360.0,0.001]
[1762751557850,0.52423206,106370.0,106360.0,0.001]
[1762751558048,0.18802293,106370.0,106360.0,0.01099999]
[1762751558402,0.18802293,106370.0,106360.0,0.01199999]
[1762751559152,0.18802293,106370.0,106360.0,0.00999999]
[1762751559350,0.19102293,106370.0,106360.0,0.2096206]
[1762751559558,0.19302293,106370.0,106360.0,0.2096206]
[1762751560394,0.005,106370.0,106360.0,0.2096206]
[1762751560594,0.005,106370.0,106360.0,0.54582973]
[1762751561229,0.0464,106370.0,106360.0,0.58687973]
[1762751561414,0.005,106370.0,106360.0,0.97807391]
[1762751561621,0.005,106370.0,106360.0,0.97854319]
[1762751562193,0.003,106370.0,106360.0,0.97854319]
[1762751562602,0.3644,106390.0,106380.0,0.18800526]
[1762751562929,0.55238759,106390.0,106380.0,0.19958526]
[1762751563808,0.56038759,106390.0,106380.0,0.19958526]
[1762751564273,0.55538759,106390.0,106380.0,0.19958526]
[1762751564469,0.55838759,106390.0,106380.0,0.19958526]
[1762751565009,0.55538759,106390.0,106380.0,0.19958526]
[1762751565164,0.55738759,106390.0,106380.0,0.19958526]
[1762751565555,0.55738759,106390.0,106370.0,0.62705777]
[1762751566395,0.55238759,106390.0,106370.0,0.62705777]
[1762751566753,0.55738759,106390.0,106370.0,0.62705777]
[1762751567161,0.18800526,106380.0,106370.0,0.56128143]
[1762751567359,0.18800526,106380.0,106370.0,0.56081206]
[1762751567552,0.18800526,106380.0,106370.0,0.57686206]
[1762751567813,0.18800526,106380.0,106370.0,0.57733156]
[1762751569216,0.18900526,106380.0,106370.0,0.57733156]
[1762751569844,0.001,106380.0,106370.0,0.57733156]
[1762751570306,0.18900526,106380.0,106370.0,0.57733156]
[1762751571619,0.18900526,106380.0,106370.0,0.55233156]
[1762751571820,0.18900526,106380.0,106370.0,0.55186206]
[1762751572835,0.18900526,106380.0,106370.0,0.57470206]
[1762751572980,0.18900526,106380.0,106370.0,0.5751713]
[1762751574368,0.18900526,106380.0,106370.0,0.23896217]
[1762751574577,0.18900526,106380.0,106370.0,0.57470206]
[1762751574811,0.18900526,106380.0,106370.0,0.5751713]
[1762751575016,0.001,106380.0,106370.0,0.5751713]
[1762751577722,0.18900526,106380.0,106370.0,0.5751713]
[1762751578885,0.18900526,106380.0,106370.0,0.23896217]
[1762751579085,0.18900526,106380.0,106370.0,0.57470206]
[1762751579302,0.18900526,106380.0,106370.0,0.57517156]
[1762751579508,0.001,106380.0,106370.0,0.57517156]
[1762751582492,0.18900526,106380.0,106370.0,0.57517156]
[1762751583654,0.001,106380.0,106370.0,0.57517156]
[1762751583818,0.18900526,106380.0,106370.0,0.21612243]
[1762751584014,0.18900526,106380.0,106370.0,0.36383913]
[1762751584221,0.18900526,106380.0,106370.0,0.38667913]
[1762751584467,0.18900526,106380.0,106360.0,0.60676333]
[1762751584676,0.18900526,106380.0,106370.0,0.00999999]
[1762751585778,0.18900526,106380.0,106370.0,0.02135999]
[1762751591752,0.18900526,106380.0,106370.0,0.03639999]
[1762751591961,0.18900526,106380.0,106370.0,0.22442292]
[1762751592391,0.18900526,106380.0,106370.0,0.03639999]
[1762751593669,0.18900526,106380.0,106370.0,0.22442292]
[1762751593870,0.18900526,106380.0,106370.0,0.24726292]
[1762751594398,0.001,106380.0,106370.0,0.24726292]
[1762751594741,0.18900526,106380.0,106370.0,0.24726292]
[1762751596119,0.001,106380.0,106370.0,0.24726292]
[1762751601567,0.001,106380.0,106370.0,0.73044286]
[1762751601788,0.001,106380.0,106370.0,1.06712051]
[1762751602004,0.001,106380.0,106370.0,0.75913003]
[1762751602422,1.408e-05,106400.0,106390.0,0.18798759]
[1762751602633,1.408e-05,106400.0,106390.0,0.21496759]
[1762751602846,1.408e-05,106400.0,106390.0,0.23802759]
[1762751603487,0.187984,106400.0,106390.0,0.23802759]
[1762751603682,0.00301408,106400.0,106390.0,0.23802759]
[1762751603890,0.00501408,106400.0,106390.0,0.23802759]
[1762751608558,0.00501408,106400.0,106390.0,0.24422759]
[1762751609706,0.192984,106400.0,106390.0,0.24422759]
[1762751610003,0.192984,106400.0,106390.0,0.05624]
[1762751610209,0.192984,106400.0,106390.0,0.24422759]
[1762751611567,0.00501408,106400.0,106390.0,0.24422759]
[1762751611766,0.192984,106400.0,106390.0,0.24422759]
[1762751614553,0.00501408,106400.0,106390.0,0.24422759]
[1762751614752,0.192984,106400.0,106390.0,0.24422759]
[1762751618931,0.192984,106400.0,106390.0,0.49624421]
[1762751619349,0.192984,106400.0,106390.0,0.05624]
[1762751619632,0.192984,106400.0,106390.0,0.24422759]
[1762751619835,0.44500062,106400.0,106390.0,0.24422759]
[1762751622615,0.44500062,106400.0,106390.0,0.05624]
[1762751624108,0.44500062,106400.0,106390.0,0.24422759]
[1762751624299,0.44500062,106400.0,106390.0,0.29257467]
[1762751625108,0.192984,106400.0,106390.0,0.29257467]
[1762751625322,0.192984,106400.0,106390.0,0.24422759]
[1762751625527,0.44500062,106400.0,106390.0,0.24422759]
[1762751627059,0.192984,106400.0,106390.0,0.24422759]
[1762751627660,0.192984,106400.0,106390.0,0.49624421]
[1762751627870,0.00501408,106400.0,106390.0,0.49624421]
[1762751629107,0.00501408,106400.0,106390.0,1.16263453]
[1762751629315,0.00501408,106400.0,106390.0,1.16310368]
[1762751629707,0.00501408,106400.0,106390.0,1.19131853]
[1762751630266,0.00501408,106400.0,106390.0,1.10475401]
[1762751630689,0.00201408,106400.0,106390.0,0.85273739]
[1762751630898,1.408e-05,106400.0,106390.0,0.85373739]
[1762751631110,1.408e-05,106400.0,106390.0,0.85473739]
[1762751638750,1.408e-05,106400.0,106390.0,0.28491158]
[1762751638952,1.408e-05,106400.0,106390.0,0.78894482]
[1762751639834,0.187984,106400.0,106390.0,0.09692399]
[1762751640014,0.187984,106400.0,106390.0,0.23316758]
[1762751640560,0.187984,106400.0,106390.0,0.25796758]
[1762751640763,1.408e-05,106400.0,106390.0,0.25796758]
[1762751640962,1.408e-05,106400.0,106390.0,0.5099842]
[1762751642350,1.408e-05,106400.0,106390.0,0.76200082]
[1762751642930,0.187984,106400.0,106390.0,0.5099842]
[1762751643131,0.187984,106400.0,106390.0,0.06997999]
[1762751643332,0.187984,106400.0,106390.0,0.25796758]
[1762751643532,0.187984,106400.0,106390.0,0.06997999]
[1762751643739,0.73337724,106400.0,106390.0,0.01819999]
[1762751644125,0.73337724,106400.0,106390.0,0.20618758]
[1762751644322,0.73337724,106400.0,106390.0,0.01819999]
[1762751644521,0.80436062,106400.0,106390.0,0.01819999]
[1762751644772,1.05637724,106400.0,106390.0,0.20518758]
[1762751644978,0.80536062,106400.0,106390.0,0.20418758]
[1762751645180,0.6173907,106400.0,106390.0,0.20418758]
[1762751645361,0.80536062,106400.0,106390.0,0.21636758]
[1762751645602,0.80536062,106400.0,106390.0,0.02837999]
[1762751647180,0.80536062,106400.0,106390.0,0.21636758]
[1762751647601,0.80536062,106400.0,106390.0,0.02837999]
[1762751647804,0.80536062,106400.0,106390.0,0.21636758]
[1762751648029,0.553344,106400.0,106390.0,0.21636758]
[1762751648228,0.80536062,106400.0,106390.0,0.21636758]
[1762751648435,0.80536062,106400.0,106390.0,0.02837999]
[1762751650020,0.80536062,106400.0,106390.0,0.01619999]
[1762751654676,0.80536062,106400.0,106390.0,0.21636758]
[1762751654962,0.553344,106400.0,106390.0,0.21636758]
[1762751655402,0.80536062,106400.0,106390.0,0.21636758]
[1762751658950,0.553344,106400.0,106390.0,0.21636758]
[1762751661239,0.553344,106400.0,106390.0,0.5092342]
[1762751661451,0.553344,106400.0,106390.0,0.32124661]
[1762751662082,0.553344,106400.0,106390.0,0.5092342]
[1762751665074,0.36537408,106400.0,106390.0,0.5092342]
[1762751665473,0.553344,106400.0,106390.0,0.5092342]
[1762751665683,0.36537408,106400.0,106390.0,0.5092342]
[1762751666061,0.553344,106400.0,106390.0,0.5092342]
[1762751666943,0.36537408,106400.0,106390.0,0.76125082]
[1762751667348,0.553344,106400.0,106390.0,0.25721758]
[1762751667553,0.553344,106400.0,106390.0,0.76125082]
[1762751668352,0.553344,106400.0,106390.0,0.25721758]
[1762751668805,0.553344,106400.0,106390.0,0.76125082]
[1762751670011,0.36537408,106400.0,106390.0,0.76125082]
[1762751670209,0.553344,106400.0,106390.0,0.76125082]
[1762751671374,0.36537408,106400.0,106390.0,0.76125082]
[1762751671984,0.553344,106400.0,106390.0,0.76125082]
[1762751679060,0.36537408,106400.0,106390.0,0.76125082]
[1762751679270,0.553344,106400.0,106390.0,0.76125082]
[1762751681048,0.511984,106400.0,106390.0,0.0062]
[1762751681262,1.24977521,106400.0,106390.0,0.0062]
[1762751681463,1.26740145,106400.0,106390.0,0.0062]
[1762751683215,1.64782845,106400.0,106390.0,0.0062]
[1762751683839,1.57084445,106400.0,106390.0,0.0062]
[1762751684263,1.60702673,106400.0,106390.0,0.0062]
[1762751684654,1.61583318,106400.0,106390.0,0.0062]
[1762751685053,1.64405727,106400.0,106390.0,0.0062]
[1762751686673,1.64305727,106400.0,106390.0,0.0062]
[1762751686854,1.64705727,106400.0,106390.0,0.0062]
[1762751687255,1.65005727,106400.0,106390.0,0.0062]
[1762751688156,1.98605659,106400.0,106390.0,0.0062]
[1762751688378,1.65005727,106400.0,106390.0,0.0062]
[1762751689207,1.34661427,106400.0,106390.0,0.0062]
[1762751689549,1.1881485,106400.0,106390.0,0.0062]
[1762751689673,1.52414782,106400.0,106390.0,0.0062]
[1762751691812,1.1881485,106400.0,106390.0,0.0062]
[1762751692015,1.51254582,106400.0,106390.0,0.0062]
[1762751692583,0.31976281,106400.0,106390.0,0.0062]
[1762751692780,0.30213657,106400.0,106390.0,0.0062]
[1762751693186,0.517984,106400.0,106390.0,0.22147759]
[1762751693390,0.00701408,106400.0,106390.0,0.73479966]
[1762751693593,0.00701408,106400.0,106390.0,0.73526935]
[1762751693939,0.00301408,106400.0,106390.0,0.73526935]
[1762751694344,0.00601408,106400.0,106390.0,0.73526935]
[1762751694565,0.00301408,106400.0,106390.0,0.73526935]
[1762751694763,1.408e-05,106400.0,106390.0,0.73526935]
[1762751694941,1.408e-05,106400.0,106390.0,0.65849916]
[1762751694942,0.00201408,106400.0,106390.0,0.65849916]
[1762751695316,0.00101408,106400.0,106390.0,0.65849916]
[1762751696904,0.00101408,106400.0,106390.0,0.65802947]
[1762751697793,1.408e-05,106400.0,106390.0,0.65802947]
[1762751698014,1.408e-05,106400.0,106390.0,0.65949916]
[1762751698298,1.408e-05,106400.0,106390.0,0.75860089]
[1762751698508,1.408e-05,106400.0,106390.0,0.66049916]
[1762751700957,1.408e-05,106400.0,106390.0,0.25870727]
[1762751701166,1.408e-05,106400.0,106390.0,0.21840727]
[1762751701374,1.408e-05,106400.0,106390.0,0.23394727]
[1762751701580,0.187984,106400.0,106390.0,0.03041968]
[1762751701791,0.187984,106400.0,106390.0,0.02994999]
[1762751702017,0.187984,106400.0,106390.0,0.25823758]
[1762751702694,0.187984,106400.0,106390.0,0.04548999]
[1762751702982,0.187984,106400.0,106390.0,0.01819999]
[1762751703842,0.187984,106400.0,106390.0,0.25823758]
[1762751704064,0.187984,106400.0,106390.0,0.02994999]
[1762751704284,0.187984,106400.0,106390.0,0.01819999]
[1762751704501,0.25787778,106400.0,106390.0,0.01819999]
[1762751705356,0.6352371,106400.0,106390.0,0.01819999]
[1762751706462,0.9582371,106400.0,106390.0,0.01719999]
[1762751706906,0.62323778,106400.0,106390.0,0.01719999]
[1762751707131,0.9592371,106400.0,106390.0,0.0062]
[1762751707339,1.3314187,106400.0,106390.0,0.0062]
[1762751707741,1.6918597,106400.0,106390.0,0.0062]
[1762751708191,2.02785902,106400.0,106390.0,0.0062]
[1762751708401,2.04544711,106400.0,106390.0,0.0062]
[1762751708813,2.04444711,106400.0,106390.0,0.0062]
[1762751709020,1.04644914,106400.0,106390.0,0.0062]
[1762751709299,2.0594471,106400.0,106390.0,0.0062]
[1762751709691,2.0564471,106400.0,106390.0,0.0062]
[1762751709902,2.0624471,106400.0,106390.0,0.0062]
[1762751710134,0.18804061,106360.0,106350.0,0.01046583]
[1762751710339,0.18804061,106360.0,106350.0,0.00999999]
[1762751710782,0.18804061,106360.0,106350.0,0.25010828]
[1762751711191,0.22938293,106370.0,106350.0,0.31590085]
[1762751711394,0.22938293,106370.0,106350.0,0.31741566]
[1762751711629,0.22938293,106370.0,106360.0,0.2253306]
[1762751711833,0.18802863,106390.0,106370.0,0.19802292]
[1762751712033,0.18798759,106390.0,106380.0,0.03728999]
[1762751712212,0.22938759,106390.0,106380.0,0.25005525]
[1762751712370,0.51098759,106390.0,106380.0,0.25005525]
[1762751712782,0.51098759,106390.0,106380.0,0.06204999]
[1762751712990,0.51098759,106390.0,106380.0,0.00999999]
[1762751713385,0.84698691,106390.0,106380.0,0.00999999]
[1762751713608,0.84898691,106390.0,106380.0,0.00999999]
[1762751713772,0.51298759,106390.0,106380.0,0.00999999]
[1762751714393,0.51498759,106390.0,106380.0,0.00999999]
[1762751715013,0.51498759,106390.0,106380.0,0.20975525]
[1762751715219,0.004,106390.0,106380.0,0.25005525]
[1762751715964,0.19198759,106390.0,106380.0,0.25005525]
[1762751716122,0.19198759,106390.0,106380.0,0.02174999]
[1762751716328,0.2673646,106390.0,106380.0,0.00999999]
[1762751716728,0.92636392,106390.0,106370.0,0.01175]
[1762751716954,0.18800526,106380.0,106370.0,0.02174999]
[1762751717166,0.20868355,106380.0,106370.0,0.02174999]
[1762751717386,0.53168355,106380.0,106370.0,0.02174999]
[1762751717820,0.53168355,106380.0,106370.0,0.00999999]
[1762751718004,0.53268355,106380.0,106370.0,0.00999999]
[1762751718387,0.91008287,106380.0,106370.0,0.00999999]
[1762751718999,0.57408355,106380.0,106370.0,0.00999999]
[1762751719553,0.55340526,106380.0,106370.0,0.00999999]
[1762751722636,0.55340526,106380.0,106360.0,0.21025252]
[1762751722913,0.55340526,106380.0,106360.0,0.23523252]
[1762751723033,0.55340526,106380.0,106370.0,0.18802293]
[1762751723699,0.55340526,106380.0,106360.0,0.23523252]
[1762751724323,0.55340526,106380.0,106370.0,0.18802293]
[1762751724524,0.55340526,106380.0,106360.0,0.23523252]
[1762751724737,0.55240526,106380.0,106360.0,0.23523252]
[1762751724948,0.55240526,106380.0,106370.0,0.18802293]
[1762751725144,0.55340526,106380.0,106360.0,0.23523252]
[1762751725799,0.55340526,106380.0,106370.0,0.18802293]
[1762751726040,0.55340526,106380.0,106360.0,0.23523252]
[1762751726816,0.55340526,106380.0,106370.0,0.18802293]
[1762751727989,0.55240526,106380.0,106370.0,0.19931293]
[1762751728152,0.55340526,106380.0,106370.0,0.19931293]
[1762751729599,0.55340526,106380.0,106370.0,0.01129]
[1762751729754,0.18802293,106370.0,106360.0,0.02221671]
[1762751729960,0.18802293,106370.0,106360.0,0.2097906]
[1762751730713,0.18802293,106370.0,106360.0,0.2264006]
[1762751730932,0.18802293,106370.0,106360.0,0.04035999]
[1762751731164,0.18802293,106370.0,106360.0,0.01199999]
[1762751733087,0.55240526,106380.0,106370.0,0.18802293]
[1762751733310,0.55240526,106380.0,106370.0,0.21592293]
[1762751733513,0.55240526,106380.0,106370.0,0.24090293]
[1762751734140,0.55240526,106380.0,106370.0,0.0279]
[1762751734352,0.55240526,106380.0,106370.0,0.21592293]
[1762751734558,0.55340526,106380.0,106370.0,0.21592293]
[1762751735703,0.55340526,106380.0,106370.0,0.24090293]
[1762751740957,0.55340526,106380.0,106370.0,0.21592293]
[1762751741656,0.001,106380.0,106370.0,0.82092287]
[1762751741855,0.001,106380.0,106370.0,1.07350446]
[1762751742055,0.001,106380.0,106370.0,1.82984553]
[1762751742183,0.001,106380.0,106370.0,2.15284553]
[1762751742382,0.001,106380.0,106370.0,2.27916259]
[1762751742825,1.408e-05,106400.0,106390.0,0.18798759]
[1762751743033,1.408e-05,106400.0,106390.0,1.03848754]
[1762751743230,1.408e-05,106400.0,106390.0,0.81135385]
[1762751744060,1.408e-05,106400.0,106390.0,0.82135384]
[1762751744631,1.408e-05,106400.0,106390.0,0.82235384]
[1762751744851,1.408e-05,106400.0,106390.0,0.31812646]
[1762751745050,1.408e-05,106400.0,106390.0,0.82235384]
[1762751745250,1.408e-05,106400.0,106390.0,0.82335384]
[1762751749342,1.408e-05,106400.0,106390.0,0.92145557]
[1762751750128,1.408e-05,106400.0,106390.0,1.17356926]
[1762751750325,1.408e-05,106400.0,106390.0,1.92944402]
[1762751750550,1.408e-05,106400.0,106390.0,1.92991372]
[1762751751072,1.408e-05,106400.0,106390.0,1.92891372]
[1762751751276,1.408e-05,106400.0,106390.0,1.965096]
[1762751751915,1.408e-05,106400.0,106390.0,1.964096]